[Event "2nd Cambridge Open 2024"]
[Site "Cambridge"]
[Date "2024.02.19"]
[Round "1.30"]
[White "De Coverly, Roger D"]
[Black "Saine, Zachary"]
[Result "0-1"]
[ECO "C91"]
[WhiteElo "1893"]
[BlackElo "1978"]
[Annotator "NA RC"]
[PlyCount "178"]
[EventDate "2024.02.18"]
[EventType "swiss"]
[EventCountry "ENG"]
[SourceTitle "playchess.com"]
[Source "ChessBase"]
[SourceQuality "1"]
[TimeControl "5400+30"]

1. e4 {[%emt 0:00:04]} e5 {[%emt 0:00:05]} 2. Nf3 {[%emt 0:00:05]} Nc6 {[%emt 0:00:05]} 3. Bb5 {[%emt 0:00:05]} a6 {[%emt 0:00:05]} 4. Ba4 {[%emt 0:00:05]} Nf6 {[%emt 0:00:05]} 5. O-O {[%emt 0:00:05]} b5 {[%emt 0:00:03]} 6. Bb3 {[%emt 0:00:05]} Be7 {[%emt 0:00:13]} 7. Re1 {[%emt 0:00:43]} d6 {[%emt 0:00:09]} 8. c3 {[%emt 0:00:25]} O-O {[%emt 0:00:13]} 9. d4 {[%emt 0:00:25]} Bg4 {[%emt 0:02:29]} 10. d5 {[%emt 0:01:51]} Nb8 {[%emt 0:01:18]} 11. h3 {[%emt 0:00:31]} Bh5 {[%emt 0:00:44] C91: Closed Ruy Lopez: 7...d6 8 c3 0-0 9 d4.} 12. Nbd2 {[%emt 0:00:54]} h6 {[%emt 0:12:27]} 13. Nf1 {[%emt 0:01:33]} Nh7 {[%emt 0:00:43]} 14. Ng3 {[%emt 0:03:57]} Bg6 {[%emt 0:00:23]} 15. Qe2 {[%emt 0:02:21]} Nd7 {[%emt 0:02:15]} 16. Nf5 {[%emt 0:03:43]} Nc5 {[%emt 0:07:04]} 17. Bc2 {[%emt 0:00:38]} Kh8 {[%emt 0:07:03]} 18. Bd2 {[%emt 0:05:38]} Ng5 {[%emt 0:07:26]} 19. b4 {[%emt 0:05:02]} Nd7 {[%emt 0:01:51]} 20. a4 {[%emt 0:01:07]} Nxf3+ {[%emt 0:19:19]} 21. Qxf3 {[%emt 0:00:39]} Bg5 {[%emt 0:00:14]} 22. Be3 {[%emt 0:05:25]} Bxe3 {[%emt 0:05:47]} 23. Rxe3 {[%emt 0:02:46]} Nb6 {[%emt 0:08:39]} 24. Re2 {[%emt 0:02:14]} Qg5 {[%emt 0:00:47]} 25. h4 $14 {[%emt 0:05:35]} Qf6 {[%emt 0:02:41]} 26. g3 {[%emt 0:04:08]} Bh7 {[%emt 0:02:26]} 27. Kg2 {[%emt 0:02:13]} g6 {[%emt 0:02:51]} 28. Ne3 {[%emt 0:03:59]} Qxf3+ {[%emt 0:00:58]} 29. Kxf3 {[%emt 0:00:07]} f5 {[%emt 0:00:05]} 30. a5 {[%emt 0:04:32]} Nd7 {[%emt 0:01:03]} 31. Nf1 {[%emt 0:03:50]} fxe4+ {[%emt 0:01:32]} 32. Kg2 {[%emt 0:01:27]} Nf6 {[%emt 0:03:19]} 33. Ne3 {[%emt 0:03:00]} g5 {[%emt 0:00:44]} 34. hxg5 {[%emt 0:04:54]} hxg5 {[%emt 0:00:04]} 35. g4 {[%emt 0:01:01]} c6 {[%emt 0:03:31]} 36. Rd1 {[%emt 0:04:41]} cxd5 {[%emt 0:01:20]} 37. Nxd5 {[%emt 0:00:42]} Nxg4 {[%emt 0:03:10]} 38. Nc7 {[%emt 0:02:28]} Ra7 {[%emt 0:00:37]} 39. Ne6 {[%emt 0:01:01]} Rf6 {[%emt 0:00:07]} 40. Rxd6 {[%emt 0:03:35]} Bg8 {[%emt 0:04:30]} 41. Bb3 {[%emt 0:00:49]} e3 {[%emt 0:01:30]} 42. f3 {[%emt 0:01:31]} Nh6 {[%emt 0:00:04]} 43. Rd8 {[%emt 0:02:46]} Nf5 {[%emt 0:01:10]} 44. Nxg5 {[%emt 0:06:21]} Rg7 {[%emt 0:00:26]} 45. Rxg8+ {[%emt 0:00:14]} Rxg8 {[%emt 0:00:02]} 46. Bxg8 {[%emt 0:00:16]} Rg6 {[%emt 0:01:13]} 47. Bd5 {[%emt 0:00:48]} Rxg5+ {[%emt 0:00:05]} 48. Kh2 {[%emt 0:01:25]} Kg7 {[%emt 0:00:41]} 49. Be4 {[%emt 0:00:43]} Kf6 {[%emt 0:00:50]} 50. Bxf5 {[%emt 0:00:38]} Kxf5 {[%emt 0:00:05]} 51. Rxe3 {[%emt 0:00:08]} Kf4 {[%emt 0:00:05]} 52. Rd3 {[%emt 0:01:55]} Rg6 {[%emt 0:00:06]} 53. Kh1 {[%emt 0:02:01]} Kg3 {[%emt 0:00:11]} 54. Kg1 {[%emt 0:00:18]} Rf6 {[%emt 0:00:24]} 55. Rd5 {[%emt 0:02:27]} Re6 {[%emt 0:02:07]} 56. Rd3 {[%emt 0:00:13]} Rf6 {[%emt 0:00:27]} 57. Rd5 {[%emt 0:00:05]} Rf5 {[%emt 0:00:24]} 58. Rd6 {[%emt 0:01:25]} Kxf3 {[%emt 0:00:34]} 59. Rxa6 {[%emt 0:01:22]} e4 {[%emt 0:00:28]} 60. Re6 {[%emt 0:00:39]} Rd5 {[%emt 0:00:25]} 61. a6 {[%emt 0:01:55]} Rd1+ {[%emt 0:00:08]} 62. Kh2 {[%emt 0:00:24]} Rd2+ {[%emt 0:00:04]} 63. Kg1 {[%emt 0:00:20]} Rd1+ {[%emt 0:00:22]} 64. Kh2 {[%emt 0:00:08]} Ra1 {[%emt 0:00:05]} 65. Rf6+ {[%emt 0:00:26]} Ke2 {[%emt 0:00:09]} 66. Kg2 {[%emt 0:01:20]} e3 {[%emt 0:00:32]} 67. Rd6 {[%emt 0:00:55]} Ra3 {[%emt 0:00:50]} 68. Re6 {[%emt 0:02:24]} Rxc3 {[%emt 0:00:19]} 69. a7 {[%emt 0:00:10]} Ra3 {[%emt 0:00:06]} 70. Re7 {[%emt 0:00:06]} Ra2 {[%emt 0:00:20]} 71. Kg3 {[%emt 0:00:27]} Kd2 {[%emt 0:00:22]} 72. Kf3 {[%emt 0:00:48]} Ra3 {[%emt 0:00:50]} 73. Kg2 {[%emt 0:01:13]} e2 {[%emt 0:00:49]} 74. Kf2 {[%emt 0:00:33]} Rxa7 {[%emt 0:00:29]} 75. Rxe2+ {[%emt 0:00:08]} Kc3 {[%emt 0:00:06]} 76. Re4 {[%emt 0:00:50]} Ra4 {[%emt 0:00:22]} 77. Re3+ {[%emt 0:01:04]} Kxb4 {[%emt 0:01:38]} 78. Ke1 {[%emt 0:00:26]} Ra3 {[%emt 0:00:21]} 79. Re8 {[%emt 0:01:30]} Rd3 {[%emt 0:00:08]} 80. Rc8 {[%emt 0:00:40]} Kb3 {[%emt 0:00:09]} 81. Ke2 {[%emt 0:00:38]} Rd7 {[%emt 0:00:12]} 82. Rc5 {[%emt 0:00:27]} b4 {[%emt 0:00:05]} 83. Rc8 {[%emt 0:00:12]} Kb2 {[%emt 0:00:10]} 84. Rc4 {[%emt 0:00:19]} b3 {[%emt 0:00:04]} 85. Rc8 {[%emt 0:00:13]} Kb1 {[%emt 0:00:05]} 86. Rc6 {[%emt 0:00:17]} b2 {[%emt 0:00:13]} 87. Rc8 {[%emt 0:00:25]} Ra7 {[%emt 0:00:12]} 88. Kd2 {[%emt 0:01:53]} Ka2 {[%emt 0:00:05]} 89. Rc2 {[%emt 0:00:30]} Ka1 {[%emt 0:00:10]} 0-1

[Event "2nd Cambridge Open 2024"]
[Site "Cambridge"]
[Date "2024.02.19"]
[Round "1.31"]
[White "Kovalskyi, Roman"]
[Black "Lazarus, Simon E"]
[Result "1-0"]
[ECO "B33"]
[WhiteElo "2009"]
[BlackElo "1845"]
[Annotator "NA RC"]
[PlyCount "109"]
[EventDate "2024.02.18"]
[EventType "swiss"]
[EventCountry "ENG"]
[SourceTitle "playchess.com"]
[Source "ChessBase"]
[SourceQuality "1"]
[TimeControl "5400+30"]

1. e4 {[%emt 0:00:02]} c5 {[%emt 0:00:23]} 2. Nf3 {[%emt 0:00:05]} Nc6 {[%emt 0:00:23]} 3. d4 {[%emt 0:00:04]} cxd4 {[%emt 0:00:16]} 4. Nxd4 {[%emt 0:00:07]} Nf6 {[%emt 0:00:35]} 5. Nc3 {[%emt 0:00:05]} e5 {[%emt 0:00:32]} 6. Ndb5 {[%emt 0:00:05]} d6 {[%emt 0:00:37]} 7. Nd5 {[%emt 0:00:05]} Nxd5 {[%emt 0:00:29]} 8. exd5 {[%emt 0:00:04]} Nb8 {[%emt 0:00:26]} 9. a4 {[%emt 0:00:05]} Be7 {[%emt 0:01:30]} 10. Be2 {[%emt 0:00:06]} O-O {[%emt 0:00:46]} 11. Bd2 {[%emt 0:00:05] B33: Sicilian: Pelikan and Sveshnikov Variations.} f5 {[%emt 0:04:53]} 12. a5 {[%emt 0:00:07]} f4 {[%emt 0:04:11]} 13. c4 {[%emt 0:00:06]} Bf5 {[%emt 0:01:46]} 14. Bg4 {[%emt 0:00:07]} Bxg4 {[%emt 0:05:22]} 15. Qxg4 {[%emt 0:00:09]} a6 {[%emt 0:00:55]} 16. Nc3 {[%emt 0:00:22]} Nd7 {[%emt 0:02:47]} 17. Ne4 {[%emt 0:02:23]} Kh8 {[%emt 0:04:14]} 18. h4 {[%emt 0:34:27]} Nf6 {[%emt 0:03:10]} 19. Qf3 {[%emt 0:02:51]} Nxe4 {[%emt 0:00:54]} 20. Qxe4 {[%emt 0:01:44]} Rc8 {[%emt 0:03:13]} 21. h5 {[%emt 0:03:50]} Qd7 {[%emt 0:03:20]} 22. b3 {[%emt 0:05:57]} Rce8 {[%emt 0:06:08]} 23. Rc1 {[%emt 0:03:07]} Qf5 {[%emt 0:02:44]} 24. f3 {[%emt 0:00:38]} Qg5 {[%emt 0:02:33]} 25. g4 {[%emt 0:00:43]} Rc8 {[%emt 0:07:42]} 26. Ke2 {[%emt 0:01:08]} Qh6 {[%emt 0:19:17]} 27. b4 $16 {[%emt 0:04:23]} Kg8 {[%emt 0:04:41]} 28. Rcg1 {[%emt 0:05:25]} Bg5 {[%emt 0:01:18]} 29. Be1 {[%emt 0:00:06]} Qf6 {[%emt 0:03:51]} 30. Bf2 {[%emt 0:02:13]} Qd8 {[%emt 0:00:56]} 31. Ra1 {[%emt 0:11:11]} Qd7 {[%emt 0:01:55]} 32. Rhc1 {[%emt 0:03:34]} Be7 {[%emt 0:01:11]} 33. Ra2 {[%emt 0:02:48]} Rfd8 {[%emt 0:04:10]} 34. Rb1 {[%emt 0:08:41]} Re8 {[%emt 0:02:15]} 35. Kd3 {[%emt 0:00:06]} Bf8 {[%emt 0:00:46]} 36. Qf5 {[%emt 0:08:04]} Qc7 {[%emt 0:00:51]} 37. Rc2 {[%emt 0:00:16]} e4+ {[%emt 0:03:06]} 38. fxe4 {[%emt 0:00:11]} Re5 {[%emt 0:00:30]} 39. Qxf4 {[%emt 0:00:54]} Be7 {[%emt 0:00:08]} 40. Bd4 {[%emt 0:01:51]} Bg5 {[%emt 0:00:16]} 41. Qf2 {[%emt 0:02:03]} Ree8 {[%emt 0:01:06]} 42. Qf5 {[%emt 0:00:18]} h6 {[%emt 0:01:02]} 43. Rf1 {[%emt 0:00:16]} Qe7 {[%emt 0:02:55]} 44. Rcf2 {[%emt 0:00:36]} Kh8 {[%emt 0:01:52]} 45. Qg6 {[%emt 0:00:32]} Qc7 {[%emt 0:00:21]} 46. Rc2 {[%emt 0:00:58]} Rf8 {[%emt 0:00:22]} 47. Rxf8+ {[%emt 0:00:30]} Rxf8 {[%emt 0:00:02]} 48. Rf2 {[%emt 0:00:26]} Rc8 {[%emt 0:00:28]} 49. c5 {[%emt 0:00:24]} dxc5 {[%emt 0:00:32]} 50. d6 {[%emt 0:00:27]} Qd7 {[%emt 0:00:39]} 51. Bxc5 {[%emt 0:01:15]} Qb5+ {[%emt 0:00:20]} 52. Kd4 {[%emt 0:00:00]} Qa4 {[%emt 0:01:13]} 53. Qf5 {[%emt 0:00:28]} Qa1+ {[%emt 0:00:33]} 54. Kd5 {[%emt 0:00:10]} Qd1+ {[%emt 0:00:26]} 55. Ke6 {[%emt 0:00:33]} 1-0

[Event "2nd Cambridge Open 2024"]
[Site "Cambridge"]
[Date "2024.02.19"]
[Round "1.33"]
[White "Asgarova, Turan"]
[Black "Woods, Yannick"]
[Result "1-0"]
[ECO "B83"]
[WhiteElo "1988"]
[BlackElo "1856"]
[Annotator "NA RC"]
[PlyCount "125"]
[EventDate "2024.02.18"]
[EventType "swiss"]
[EventCountry "ENG"]
[SourceTitle "playchess.com"]
[Source "ChessBase"]
[SourceQuality "1"]
[TimeControl "5400+30"]

1. e4 {[%emt 0:00:02]} c5 {[%emt 0:00:06]} 2. Nf3 {[%emt 0:00:08]} d6 {[%emt 0:00:03]} 3. d4 {[%emt 0:00:08]} cxd4 {[%emt 0:00:04]} 4. Nxd4 {[%emt 0:00:14]} Nf6 {[%emt 0:00:07]} 5. Nc3 {[%emt 0:00:07]} e6 {[%emt 0:00:02]} 6. Be2 {[%emt 0:01:11]} Nc6 {[%emt 0:00:11]} 7. Be3 {[%emt 0:00:07]} Be7 {[%emt 0:00:12]} 8. O-O {[%emt 0:00:51]} O-O {[%emt 0:00:32]} 9. f4 {[%emt 0:00:27]} e5 {[%emt 0:00:08]} 10. Nxc6 {[%emt 0:06:18]} bxc6 {[%emt 0:00:13]} 11. fxe5 {[%emt 0:00:44]} dxe5 {[%emt 0:00:27]} 12. Qe1 {[%emt 0:09:12]} Be6 {[%emt 0:14:24] B83: Sicilian Scheveningen: 6 Be2, lines without ...a6.} 13. Qg3 {[%emt 0:04:27]} Qc7 {[%emt 0:02:19]} 14. Rad1 {[%emt 0:08:03]} Rfd8 {[%emt 0:08:31]} 15. Bh6 {[%emt 0:07:26]} Ne8 {[%emt 0:01:11]} 16. Kh1 {[%emt 0:07:10]} Kh8 {[%emt 0:01:20]} 17. Be3 {[%emt 0:03:22]} Rab8 {[%emt 0:09:42]} 18. b3 {[%emt 0:04:30]} Nf6 {[%emt 0:02:34]} 19. Bf3 {[%emt 0:02:19]} Qa5 {[%emt 0:10:23]} 20. Na4 {[%emt 0:04:13]} Rxd1 {[%emt 0:06:22]} 21. Rxd1 {[%emt 0:00:46]} Rd8 {[%emt 0:00:17]} 22. Rxd8+ {[%emt 0:01:38]} Bxd8 {[%emt 0:01:00]} 23. h3 $11 {[%emt 0:03:14]} Bb6 {[%emt 0:07:28]} 24. Nxb6 {[%emt 0:09:35]} axb6 {[%emt 0:00:03]} 25. a4 {[%emt 0:02:08]} Qc3 {[%emt 0:04:24]} 26. Bxb6 {[%emt 0:02:45]} Nxe4 {[%emt 0:17:59]} 27. Qh4 {[%emt 0:00:12]} Nf6 {[%emt 0:00:06]} 28. Bd8 {[%emt 0:09:11]} Ng8 {[%emt 0:03:16]} 29. a5 {[%emt 0:01:08]} f5 {[%emt 0:03:01]} 30. Bh5 {[%emt 0:05:23]} Qxc2 {[%emt 0:03:48]} 31. a6 {[%emt 0:04:15]} Bd5 {[%emt 0:00:55]} 32. Qg3 {[%emt 0:02:42]} Qa2 {[%emt 0:01:57]} 33. Bc7 {[%emt 0:01:12]} Qxa6 {[%emt 0:03:15]} 34. Bxe5 {[%emt 0:00:22]} Qb7 {[%emt 0:00:21]} 35. b4 {[%emt 0:01:11]} Qe7 {[%emt 0:00:44]} 36. Kh2 {[%emt 0:00:48]} Nf6 {[%emt 0:00:25]} 37. Bxf6 {[%emt 0:00:33]} Qxf6 {[%emt 0:00:15]} 38. Qb8+ {[%emt 0:00:18]} Bg8 {[%emt 0:00:07]} 39. Bf3 {[%emt 0:00:36]} h6 {[%emt 0:01:05]} 40. b5 {[%emt 0:00:12]} cxb5 {[%emt 0:00:41]} 41. Bd5 {[%emt 0:00:10]} Kh7 {[%emt 0:00:17]} 42. Bxg8+ {[%emt 0:00:15]} Kg6 {[%emt 0:00:11]} 43. Qe8+ {[%emt 0:00:33]} Kg5 {[%emt 0:00:11]} 44. Qe3+ {[%emt 0:01:13]} f4 {[%emt 0:00:33]} 45. Qc5+ {[%emt 0:00:12]} Qf5 {[%emt 0:00:34]} 46. Qxf5+ {[%emt 0:00:51]} Kxf5 {[%emt 0:00:10]} 47. Kg1 {[%emt 0:00:10]} g5 {[%emt 0:01:25]} 48. Bh7+ {[%emt 0:00:08]} Ke5 {[%emt 0:00:18]} 49. Kf2 {[%emt 0:00:06]} h5 {[%emt 0:00:27]} 50. Kf3 {[%emt 0:01:31]} Kf6 {[%emt 0:00:54]} 51. Bc2 {[%emt 0:00:48]} Ke5 {[%emt 0:00:22]} 52. Bg6 {[%emt 0:00:14]} b4 {[%emt 0:00:38]} 53. Bxh5 {[%emt 0:00:25]} Kf6 {[%emt 0:00:29]} 54. Ke4 {[%emt 0:00:08]} b3 {[%emt 0:00:30]} 55. Kd3 {[%emt 0:00:04]} b2 {[%emt 0:00:31]} 56. Kc2 {[%emt 0:00:04]} b1=Q+ {[%emt 0:00:10]} 57. Kxb1 {[%emt 0:00:05]} f3 {[%emt 0:00:15]} 58. Bxf3 {[%emt 0:00:15]} Kf5 {[%emt 0:00:08]} 59. Kc2 {[%emt 0:00:08]} Kf4 {[%emt 0:00:15]} 60. Kd3 {[%emt 0:00:08]} Kg3 {[%emt 0:00:58]} 61. Ke4 {[%emt 0:00:10]} Kh4 {[%emt 0:00:40]} 62. Kf5 {[%emt 0:00:11]} g4 {[%emt 0:00:07]} 63. hxg4 {[%emt 0:00:43]} 1-0

[Event "2nd Cambridge Open 2024"]
[Site "Cambridge"]
[Date "2024.02.19"]
[Round "1.34"]
[White "Yu, Rock"]
[Black "Volovich, Julia"]
[Result "0-1"]
[ECO "A34"]
[WhiteElo "1767"]
[BlackElo "1983"]
[Annotator "NA"]
[PlyCount "80"]
[EventDate "2024.02.18"]
[EventType "swiss"]
[EventCountry "ENG"]
[SourceTitle "playchess.com"]
[Source "ChessBase"]
[SourceQuality "1"]
[TimeControl "5400+30"]

1. c4 {[%emt 0:00:03]} c5 {[%emt 0:00:17]} 2. Nc3 {[%emt 0:00:02]} Nf6 {[%emt 0:00:27]} 3. g3 {[%emt 0:00:02]} d5 {[%emt 0:00:20]} 4. cxd5 {[%emt 0:00:31]} Nxd5 {[%emt 0:00:22]} 5. Bg2 {[%emt 0:00:38]} Nc7 {[%emt 0:00:40]} 6. Nf3 {[%emt 0:03:38]} Nc6 {[%emt 0:00:48]} 7. O-O {[%emt 0:00:22]} e5 {[%emt 0:00:23]} 8. d3 {[%emt 0:00:42]} Be7 {[%emt 0:00:18]} 9. Be3 {[%emt 0:06:03]} Bd7 {[%emt 0:02:17]} 10. Rc1 {[%emt 0:05:06]} Rb8 {[%emt 0:05:57] A34: Symmetrical English: 2 Nc3, lines with ...d5.} 11. a3 {[%emt 0:01:57]} O-O {[%emt 0:05:04]} 12. Ne1 {[%emt 0:02:55]} Ne6 {[%emt 0:04:43]} 13. Nd5 {[%emt 0:05:56]} Ned4 {[%emt 0:09:10]} 14. Bxd4 {[%emt 0:05:48]} cxd4 {[%emt 0:05:25]} 15. Nxe7+ {[%emt 0:00:34]} Qxe7 {[%emt 0:02:02]} 16. Qd2 {[%emt 0:06:25]} Rbc8 {[%emt 0:11:00]} 17. Nc2 {[%emt 0:01:50]} b6 {[%emt 0:01:53]} 18. Nb4 {[%emt 0:02:01]} Na5 {[%emt 0:07:42]} 19. Rxc8 {[%emt 0:01:44]} Rxc8 {[%emt 0:00:11]} 20. Rc1 {[%emt 0:00:59]} Rxc1+ {[%emt 0:12:58]} 21. Qxc1 {[%emt 0:00:01]} Qc5 {[%emt 0:00:19]} 22. Qxc5 {[%emt 0:03:11]} bxc5 {[%emt 0:00:05]} 23. Na6 {[%emt 0:00:06]} c4 $11 {[%emt 0:01:24]} 24. dxc4 {[%emt 0:12:12]} Nxc4 {[%emt 0:00:53]} 25. Nc5 {[%emt 0:00:52]} Bf5 {[%emt 0:02:26]} 26. f4 {[%emt 0:06:28]} exf4 {[%emt 0:02:41]} 27. gxf4 {[%emt 0:00:29]} Nxb2 {[%emt 0:00:53]} 28. Bd5 {[%emt 0:07:26]} Nd1 {[%emt 0:09:28]} 29. Nb3 {[%emt 0:03:39]} Ne3 {[%emt 0:01:36]} 30. Bf3 {[%emt 0:01:49]} Nc2 {[%emt 0:02:36]} 31. a4 {[%emt 0:00:19]} Kf8 {[%emt 0:00:32]} 32. Bd5 {[%emt 0:03:49]} Ke7 {[%emt 0:02:09]} 33. Na5 {[%emt 0:07:39]} Nb4 {[%emt 0:01:39]} 34. Bf3 {[%emt 0:01:04]} Bc2 {[%emt 0:00:59]} 35. Nc6+ {[%emt 0:01:33]} Nxc6 {[%emt 0:00:06]} 36. Bxc6 {[%emt 0:00:02]} Kd6 {[%emt 0:00:31]} 37. Be8 {[%emt 0:00:35]} f6 {[%emt 0:00:03]} 38. Kf2 {[%emt 0:00:31]} Kc5 {[%emt 0:00:50]} 39. a5 {[%emt 0:00:30]} Kb4 {[%emt 0:00:14]} 40. a6 {[%emt 0:00:35]} Ka5 {[%emt 0:00:09]} 0-1

[Event "2nd Cambridge Open 2024"]
[Site "Cambridge"]
[Date "2024.02.19"]
[Round "1.35"]
[White "Woltery, Nicolai"]
[Black "Baguley, John"]
[Result "1-0"]
[ECO "E68"]
[WhiteElo "1979"]
[BlackElo "1790"]
[Annotator "NA RC"]
[PlyCount "47"]
[EventDate "2024.02.18"]
[EventType "swiss"]
[EventCountry "ENG"]
[SourceTitle "playchess.com"]
[Source "ChessBase"]
[SourceQuality "1"]
[TimeControl "5400+30"]

1. c4 {[%emt 0:00:03]} Nf6 {[%emt 0:00:13]} 2. Nc3 {[%emt 0:00:10]} g6 {[%emt 0:00:14]} 3. g3 {[%emt 0:00:10]} d6 {[%emt 0:00:17]} 4. d4 {[%emt 0:00:09]} Bg7 {[%emt 0:00:16]} 5. Bg2 {[%emt 0:00:13]} O-O {[%emt 0:00:16]} 6. Nf3 {[%emt 0:00:07]} Nbd7 {[%emt 0:00:57]} 7. O-O {[%emt 0:00:16]} e5 {[%emt 0:01:18]} 8. e4 {[%emt 0:01:17]} exd4 {[%emt 0:01:40]} 9. Nxd4 {[%emt 0:00:11]} Ne5 {[%emt 0:02:16]} 10. b3 {[%emt 0:04:29]} Ne8 {[%emt 0:04:11]} 11. Bb2 {[%emt 0:13:05]} Rb8 {[%emt 0:13:04]} 12. Qd2 {[%emt 0:04:10]} c5 {[%emt 0:06:32]} 13. Nde2 {[%emt 0:02:59]} f5 {[%emt 0:01:43]} 14. f4 {[%emt 0:02:10]} Nc6 {[%emt 0:03:22]} 15. Rad1 {[%emt 0:06:44]} Be6 {[%emt 0:10:32]} 16. exf5 {[%emt 0:20:33]} Bxf5 {[%emt 0:02:05]} 17. Nd5 {[%emt 0:07:58]} Qd7 {[%emt 0:04:00]} 18. Bxg7 $16 {[%emt 0:01:15]} Kxg7 {[%emt 0:01:10]} 19. Rfe1 {[%emt 0:04:09]} Bh3 {[%emt 0:03:37]} 20. Nec3 {[%emt 0:02:09]} Bxg2 {[%emt 0:01:55]} 21. Kxg2 {[%emt 0:00:23]} Nf6 {[%emt 0:05:58]} 22. Nxf6 {[%emt 0:00:39]} Rxf6 {[%emt 0:01:24]} 23. Ne4 {[%emt 0:00:17]} Re6 {[%emt 0:03:00]} 24. Nxc5 {[%emt 0:01:09]} 1-0

[Event "2nd Cambridge Open 2024"]
[Site "Cambridge"]
[Date "2024.02.19"]
[Round "1.36"]
[White "Lenton, Oliver J"]
[Black "Hagesather, Nina"]
[Result "1-0"]
[ECO "D00"]
[WhiteElo "1787"]
[BlackElo "1973"]
[Annotator "NA"]
[PlyCount "55"]
[EventDate "2024.02.18"]
[EventType "swiss"]
[EventCountry "ENG"]
[SourceTitle "playchess.com"]
[Source "ChessBase"]
[SourceQuality "1"]
[TimeControl "5400+30"]

1. e4 {[%emt 0:00:03]} c6 {[%emt 0:00:07]} 2. d4 {[%emt 0:00:05]} d5 {[%emt 0:00:06]} 3. Nc3 {[%emt 0:00:06]} dxe4 {[%emt 0:00:05]} 4. Bc4 {[%emt 0:00:04]} Nf6 {[%emt 0:01:13]} 5. f3 {[%emt 0:00:05]} exf3 {[%emt 0:01:07]} 6. Nxf3 {[%emt 0:00:04]} e6 {[%emt 0:01:31]} 7. O-O {[%emt 0:00:09]} Be7 {[%emt 0:02:04]} 8. Qe1 {[%emt 0:03:45]} b5 {[%emt 0:18:49]} 9. Bd3 {[%emt 0:01:38]} Nbd7 {[%emt 0:22:25]} 10. Ne2 {[%emt 0:06:19]} Qc7 {[%emt 0:06:22]} 11. Nf4 {[%emt 0:05:34]} Nb6 {[%emt 0:07:02]} 12. Qg3 {[%emt 0:16:50]} g6 $16 {[%emt 0:06:21]} (12... Rg8 $11 {keeps the balance.}) 13. Ne5 {[%emt 0:06:11]} Rf8 {[%emt 0:03:54]} 14. a4 {[%emt 0:14:12]} Bd7 {[%emt 0:06:49]} 15. Qf3 {[%emt 0:08:05]} b4 {[%emt 0:05:57]} 16. c4 {[%emt 0:05:11]} bxc3 {[%emt 0:01:16]} 17. bxc3 {[%emt 0:00:22]} Ng8 {[%emt 0:02:03]} 18. c4 {[%emt 0:06:20]} a5 {[%emt 0:04:00]} 19. Be4 {[%emt 0:06:24]} Rc8 {[%emt 0:01:04]} 20. Bd2 {[%emt 0:00:45]} f5 {[%emt 0:01:37]} 21. Bc2 {[%emt 0:07:48]} g5 {[%emt 0:01:46]} 22. Qh5+ {[%emt 0:02:57]} Kd8 {[%emt 0:00:06]} 23. Nf7+ {[%emt 0:00:36]} Rxf7 {[%emt 0:00:56]} 24. Qxf7 {[%emt 0:00:02]} gxf4 {[%emt 0:00:37]} 25. Qxg8+ {[%emt 0:00:22]} Be8 {[%emt 0:00:03]} 26. Qxe6 {[%emt 0:01:21]} Bb4 {[%emt 0:02:08]} 27. Bxf4 {[%emt 0:02:15]} Qd7 {[%emt 0:02:10]} 28. Bxf5 {[%emt 0:00:21]} 1-0

[Event "2nd Cambridge Open 2024"]
[Site "Cambridge"]
[Date "2024.02.19"]
[Round "1.37"]
[White "Iyengar, Ilya"]
[Black "Lim, Mark"]
[Result "1/2-1/2"]
[ECO "A44"]
[WhiteElo "1972"]
[BlackElo "2265"]
[Annotator "TA"]
[PlyCount "50"]
[EventDate "2024.02.18"]
[EventType "swiss"]
[EventCountry "ENG"]
[SourceTitle "playchess.com"]
[Source "ChessBase"]
[SourceQuality "1"]
[TimeControl "5400+30"]

{[%evp 9,50,69,85,70,88,83,71,42,59,53,112,79,166,87,87,85,92,92,185,145,225,141,138,123,146,98,61,13,17,8,12,0,0,0,0,-21,-22,-27,-39,-25,-54,-56,0]} 1. d4 {[%emt 0:05:21]} c5 {[%emt 0:00:06]} 2. d5 {[%emt 0:00:34]} e5 {[%emt 0:00:15]} 3. e4 {[%emt 0:00:36]} d6 {[%emt 0:00:03]} 4. Bb5+ {[%emt 0:01:09]} Nd7 {[%emt 0:04:57]} 5. a4 {[%emt 0:02:55]} a6 {[%emt 0:02:16] Black is weak on the light squares} 6. Be2 {[%emt 0:01:32] White is more active.} Be7 {[%emt 0:01:32]} 7. Nf3 {[%emt 0:01:16]} Nf8 {[%emt 0:03:48]} 8. h3 {[%emt 0:01:33] White is better.} Ng6 {[%emt 0:02:52]} 9. O-O {[%emt 0:04:40]} Nh4 {[%emt 0:05:17]} (9... b6 $14) 10. Nbd2 {[%emt 0:16:41]} Bg5 {[%emt 0:11:05]} (10... Nxf3+ $16 {was called for.} 11. Bxf3 (11. Nxf3 Nf6 $14) 11... b6) 11. Nc4 {[%emt 0:12:33]} (11. Nxg5 $18 Qxg5 12. g3) 11... Nxf3+ $16 {[%emt 0:03:12]} 12. Bxf3 {[%emt 0:01:59] Strongly threatening Bxg5.} Bxc1 {[%emt 0:00:34]} 13. Qxc1 {[%emt 0:00:07]} h5 {[%emt 0:02:32]} (13... Nf6 $16) 14. a5 {[%emt 0:21:36]} Qf6 {[%emt 0:01:47]} (14... Qe7 $16 {is a better defense.} 15. b4 cxb4) 15. Nb6 {[%emt 0:04:20]} Rb8 {[%emt 0:00:08][%cal Oc8h3]} 16. Ra3 {[%emt 0:00:46]} g5 {[%emt 0:03:45]} 17. Nxc8 {[%emt 0:17:25]} (17. Qe1 $142) 17... Rxc8 {[%emt 0:00:10]} 18. g3 {[%emt 0:00:21]} (18. Be2 $14 {was preferrable.}) 18... Qg6 $11 {[%emt 0:02:45]} 19. Bg2 {[%emt 0:02:34]} h4 {[%emt 0:08:21]} 20. f4 {[%emt 0:01:28]} gxf4 {[%emt 0:12:43]} 21. gxf4 {[%emt 0:00:05]} Nf6 {[%emt 0:12:14] [#] Hoping for ...Rg8.} 22. fxe5 {[%emt 0:00:24]} Rg8 $1 {[%emt 0:00:32]} 23. Rf2 {[%emt 0:00:58]} (23. Rxf6 $2 Qxg2#) 23... Nxe4 {[%emt 0:03:01]} 24. Re2 {[%emt 0:00:08] And now Qe3 would win.} Ng3 {[%emt 0:01:20]} 25. Rf2 {[%emt 0:01:08]} Ne4 {[%emt 0:04:34] Weighted Error Value: White=0.25 (precise) /Black=0.22 (precise) .  Mistake:       	White=3     	Black=5      Inaccurate:     	White=2     	---        OK:         	White=2     	Black=7      Best:        	---       	Black=1      Strong:       	---       	Black=1} (25... dxe5 $15 26. Rb3 f5) 1/2-1/2